bitfinex/quotes_SOLUSD_20220212
["timestamp","ask_amount","ask_price","bid_price","bid_amount"]
[1644656297572,5.241,95.448,95.34,0.024]
[1644656297776,15.733,95.44,95.34,0.024]
[1644656297977,5.241,95.439,95.34,0.024]
[1644656298180,5.241,95.464,95.341,5.241]
[1644656298375,5.241,95.464,95.351,46.63180121]
[1644656298574,5.24,95.469,95.36,0.024]
[1644656298773,5.24,95.484,95.36,12.624]
[1644656298975,5.24,95.484,95.37,0.024]
[1644656299774,15.7268,95.48,95.37,0.024]
[1644656299977,5.239,95.479,95.37,0.024]
[1644656300376,7.48114099,95.479,95.37,0.024]
[1644656300575,2.24214099,95.478,95.37,0.024]
[1644656300779,5.239,95.477,95.37,0.024]
[1644656301177,2.24214099,95.476,95.37,0.024]
[1644656301576,5.239,95.475,95.37,0.024]
[1644656301776,15.7295,95.46,95.37,0.024]
[1644656302079,5.24,95.459,95.36,0.024]
[1644656302377,7.48214099,95.459,95.36,0.024]
[1644656302577,24.7069,95.458,95.36,0.024]
[1644656302777,24.7069,95.458,95.361,5.24]
[1644656302980,28.3267,95.48,95.361,5.24]
[1644656303279,5.24,95.458,95.37,15.7491]
[1644656303477,5.239,95.479,95.371,47.23684189]
[1644656303681,12.6,95.48,95.372,5.239]
[1644656303878,2.24214099,95.478,95.372,5.239]
[1644656304078,5.239,95.477,95.371,47.23684189]
[1644656304279,23.4291,95.476,95.371,47.23684189]
[1644656304481,15.7274,95.47,95.371,47.23684189]
[1644656304779,5.239,95.469,95.371,47.23684189]
[1644656304982,15.7274,95.47,95.371,47.23684189]
[1644656305279,15.7274,95.47,95.371,58.81684189]
[1644656306281,5.239,95.486,95.372,5.239]
[1644656306482,5.239,95.505,95.38,12.6]
[1644656306682,5.239,95.516,95.381,5.238]
[1644656306884,5.238,95.534,95.381,21.16320378]
[1644656307086,48.1755,95.552,95.382,2.38366791]
[1644656307087,5.237,95.538,95.382,2.38366791]
[1644656307382,5.237,95.538,95.383,5.237]
[1644656307581,15.7176,95.53,95.4,15.7204]
[1644656307781,29.4597,95.529,95.41,12.6]
[1644656307984,31.70184099,95.529,95.41,12.6]
[1644656308287,2.24214099,95.528,95.411,5.237]
[1644656308487,7.47914099,95.528,95.411,5.237]
[1644656308884,15.7209,95.51,95.411,5.237]
[1644656309185,5.237,95.509,95.412,2.38366791]
[1644656309485,5.237,95.509,95.411,5.237]
[1644656311787,5.237,95.509,95.412,2.38366791]
[1644656311986,5.237,95.527,95.413,5.237]
[1644656312188,5.237,95.528,95.413,5.237]
[1644656312889,7.47914099,95.528,95.413,5.237]
[1644656313088,7.47914099,95.528,95.411,5.237]
[1644656313287,7.47914099,95.528,95.41,28.3186]
[1644656313889,15.7193,95.52,95.41,28.3186]
[1644656314088,15.7193,95.52,95.411,5.237]
[1644656314492,24.5091,95.519,95.411,5.237]
[1644656314890,15.7214,95.51,95.402,22.8247]
[1644656315090,5.238,95.509,95.402,22.8247]
[1644656315290,23.2646,95.508,95.402,22.8247]
[1644656315491,5.238,95.507,95.402,22.8247]
[1644656315891,2.24214099,95.506,95.402,22.8247]
[1644656316092,5.238,95.505,95.402,22.8247]
[1644656316295,12.6,95.5,95.402,22.8247]
[1644656316696,2.24214099,95.499,95.402,22.8247]
[1644656316896,15.7256,95.48,95.402,22.8247]
[1644656317094,5.238,95.479,95.401,42.71117392]
[1644656317495,15.1,95.48,95.401,42.71117392]
[1644656317696,5.238,95.479,95.401,42.71117392]
[1644656318098,2.24214099,95.478,95.401,42.71117392]
[1644656318518,5.238,95.477,95.401,42.71117392]
[1644656318719,15.7277,95.47,95.401,42.71117392]
[1644656318922,5.239,95.469,95.401,42.71117392]
[1644656320422,15.7291,95.46,95.401,42.71117392]
[1644656320625,15.7291,95.46,95.374,5.239]
[1644656320922,5.24,95.459,95.356,24.8831]
[1644656321627,22.8208,95.458,95.358,45.29436045]
[1644656321824,5.24,95.457,95.359,5.24]
[1644656322024,30.8308,95.45,95.358,45.29436045]
[1644656322230,5.24,95.449,95.358,45.29436045]
[1644656322428,5.24,95.449,95.321,22.9806]
[1644656322429,9.33914,95.449,95.321,22.9806]
[1644656322630,2.24214099,95.448,95.31,0.024]
[1644656322828,9.34114,95.447,95.31,0.024]
[1644656323029,9.34114,95.447,95.32,0.024]
[1644656323228,2.24214099,95.446,95.32,0.024]
[1644656323529,9.34114,95.445,95.32,0.024]
[1644656323830,30.8371,95.43,95.32,0.024]
[1644656324032,5.242,95.429,95.32,0.024]
[1644656324228,24.4914,95.428,95.32,0.024]
[1644656324430,5.242,95.427,95.32,0.024]
[1644656324832,22.7864,95.426,95.32,0.024]
[1644656325031,5.242,95.425,95.32,0.024]
[1644656325231,15.1,95.41,95.32,0.024]
[1644656325432,22.7402,95.409,95.32,0.024]
[1644656325835,15.7393,95.4,95.32,0.024]
[1644656326040,15.7393,95.4,95.303,44.38458125]
[1644656327434,5.243,95.399,95.303,44.38458125]
[1644656329738,5.243,95.399,95.303,49.62758125]
[1644656331040,5.243,95.399,95.303,44.38458125]
[1644656333141,5.243,95.399,95.303,49.62758125]
[1644656334141,5.243,95.399,95.303,44.38458125]
[1644656336043,15.7393,95.4,95.304,5.243]
[1644656338246,22.7402,95.409,95.304,5.243]
[1644656338447,5.243,95.425,95.31,0.024]
[1644656338646,5.243,95.443,95.311,5.242]
[1644656338845,5.242,95.444,95.32,12.6]
[1644656339045,5.242,95.444,95.321,52.85497579]
[1644656339448,5.242,95.444,95.321,55.2386437]
[1644656339846,15.7325,95.44,95.321,55.2386437]
[1644656340450,5.242,95.455,95.322,2.38366791]
[1644656340646,5.242,95.464,95.323,5.241]
[1644656340855,54.4473,95.485,95.323,21.16620378]
[1644656341050,54.4473,95.485,95.324,18.17828798]
[1644656341349,54.4473,95.485,95.325,23.41928798]
[1644656341550,54.4473,95.485,95.341,39.82870136]
[1644656341748,49.2063,95.485,95.342,29.6407]
[1644656341950,49.2063,95.485,95.342,57.97443331]
[1644656342147,49.2063,95.485,95.342,74.0657482]
[1644656342350,49.2063,95.485,95.343,55.62151108]
[1644656342551,5.24,95.484,95.38,15.7229]
[1644656342748,5.24,95.484,95.381,41.49941502]
[1644656345374,49.2063,95.485,95.381,41.49941502]
[1644656346776,5.239,95.484,95.381,41.49941502]
[1644656346975,49.2063,95.485,95.382,5.239]
[1644656348077,5.239,95.484,95.381,41.49941502]
[1644656351391,15.726,95.48,95.381,41.49941502]
[1644656351591,5.239,95.479,95.381,41.49941502]
[1644656351893,7.47503876,95.479,95.381,41.49941502]
[1644656352092,2.23603876,95.478,95.381,41.49941502]
[1644656352293,5.239,95.477,95.381,41.49941502]
[1644656352491,7.47503876,95.477,95.381,41.49941502]
[1644656352693,5.239,95.479,95.381,41.49941502]
[1644656352892,15.7298,95.46,95.381,41.49941502]
[1644656353092,5.239,95.459,95.381,41.49941502]
[1644656355494,15.7309,95.45,95.362,5.239]
[1644656355695,5.24,95.449,95.362,5.239]
[1644656355994,5.24,95.449,95.305,26.813673]
[1644656355995,7.47430907,95.449,95.327,5.24]
[1644656356195,22.8553,95.448,95.32,5.241]
[1644656356396,5.241,95.447,95.344,48.47039272]
[1644656356594,15.7323,95.44,95.344,48.47039272]
[1644656356794,5.241,95.439,95.344,48.47039272]
[1644656357195,7.47530907,95.439,95.301,5.241]
[1644656357401,2.23430907,95.438,95.301,5.241]
[1644656357596,5.242,95.437,95.301,5.241]
[1644656357798,6.71340804,95.437,95.302,1.47785656]
[1644656357998,15.7359,95.42,95.302,1.47785656]
[1644656358197,27.8666,95.419,95.303,39.18749782]
[1644656358496,22.6236,95.419,95.304,5.243]
[1644656358700,2.23430907,95.418,95.304,5.243]
[1644656358997,5.243,95.417,95.304,5.243]
[1644656359196,24.314,95.416,95.304,5.243]
[1644656359397,5.243,95.415,95.304,5.243]
[1644656359899,15.7376,95.41,95.304,5.243]
[1644656360096,5.243,95.409,95.304,5.243]
[1644656360700,5.243,95.415,95.304,5.243]
[1644656360899,24.314,95.416,95.304,5.243]
[1644656361898,15.7391,95.4,95.304,5.243]
[1644656365400,15.7391,95.4,95.304,6.72085656]
[1644656365599,15.7391,95.4,95.306,1.47785656]
[1644656365799,15.7391,95.4,95.307,5.243]
[1644656365999,5.243,95.399,95.303,40.66535438]
[1644656366201,15.7391,95.4,95.306,6.72085656]
[1644656366401,5.243,95.415,95.307,1.47785656]
[1644656366603,5.243,95.415,95.308,1.47785656]
[1644656366999,5.243,95.415,95.309,1.47785656]
[1644656367201,12.6,95.41,95.306,1.47785656]
[1644656367404,5.243,95.409,95.303,39.18749782]
[1644656368603,15.7396,95.4,95.304,7.62666791]
[1644656368806,15.7396,95.4,95.31,12.6]
[1644656369005,15.7396,95.4,95.311,5.243]
[1644656372306,5.243,95.399,95.303,39.18749782]
[1644656373207,5.243,95.399,95.303,40.66535438]
[1644656373909,5.243,95.399,95.303,39.18749782]
[1644656374108,5.243,95.399,95.304,5.243]
[1644656375108,5.243,95.399,95.304,6.72085656]
[1644656375311,24.314,95.416,95.31,15.7351]
[1644656375508,5.243,95.429,95.32,14.07785656]
[1644656375710,76.92960804,95.457,95.329,1.47785656]
[1644656375711,46.9488,95.444,95.329,1.47785656]
[1644656375908,46.9488,95.444,95.34,12.6]
[1644656376109,46.9488,95.444,95.341,34.85318284]
[1644656376508,15.7325,95.44,95.341,34.85318284]
[1644656376709,5.241,95.439,95.341,34.85318284]
[1644656377511,2.23421178,95.438,95.341,34.85318284]
[1644656377808,5.241,95.437,95.341,34.85318284]
[1644656378207,2.23421178,95.436,95.341,34.85318284]
[1644656378826,15.7341,95.43,95.341,34.85318284]
[1644656379631,5.241,95.443,95.341,34.85318284]
[1644656380028,15.7326,95.44,95.341,34.85318284]
[1644656380231,5.241,95.439,95.341,34.85318284]
[1644656380428,1.47140804,95.438,95.341,34.85318284]
[1644656380634,1.47140804,95.431,95.341,34.85318284]
[1644656380832,12.6,95.43,95.314,1.47785656]
[1644656381031,1.47140804,95.428,95.311,1.47785656]
[1644656381232,6.71340804,95.427,95.31,1.47785656]
[1644656381435,1.47140804,95.424,95.311,5.242]
[1644656381631,1.47140804,95.423,95.307,1.47785656]
[1644656381830,15.7359,95.42,95.314,1.47785656]
[1644656382032,15.7359,95.42,95.315,1.47785656]
[1644656382237,5.243,95.426,95.323,1.47785656]
[1644656382440,23.7028,95.429,95.324,46.0576105]
[1644656383140,15.7358,95.42,95.324,44.57975394]
[1644656383338,5.242,95.419,95.324,44.57975394]
[1644656383538,1.47140804,95.413,95.324,44.57975394]
[1644656383837,6.71340804,95.412,95.324,44.57975394]
[1644656384038,3.70561982,95.412,95.324,44.57975394]
[1644656384439,8.94761982,95.411,95.324,44.57975394]
[1644656384641,1.47140804,95.407,95.324,44.57975394]
[1644656384839,15.741,95.4,95.308,36.24141727]
[1644656385241,5.243,95.399,95.308,36.24141727]
[1644656385641,46.9836,95.398,95.308,36.24141727]
[1644656385841,5.243,95.397,95.308,36.24141727]
[1644656389143,15.7408,95.39,95.292,6.72678421]
[1644656389346,15.7408,95.39,95.277,1.48378421]
[1644656389347,1.47140804,95.378,95.277,1.48378421]
[1644656389544,1.47140804,95.378,95.264,1.48378421]
[1644656389545,15.12,95.37,95.264,1.48378421]
[1644656389744,5.245,95.369,95.261,1.48378421]
[1644656389948,29.8611,95.369,95.265,1.48378421]
[1644656390148,9.78147825,95.368,95.268,1.48378421]
[1644656390347,9.78147825,95.368,95.266,47.07125747]
[1644656390348,29.8619,95.367,95.266,47.07125747]
[1644656390545,32.09623228,95.367,95.266,47.07125747]
[1644656390750,15.7474,95.35,95.266,47.07125747]
[1644656390949,29.60415638,95.349,95.266,48.55504168]
[1644656391146,15.7474,95.35,95.266,47.07125747]
[1644656391349,15.7474,95.35,95.267,1.48378421]
[1644656391849,15.7474,95.35,95.266,48.55504168]
[1644656392047,5.246,95.349,95.266,48.55504168]
[1644656392247,15.7474,95.35,95.268,3.86745212]
[1644656392648,15.7474,95.35,95.269,2.38366791]
[1644656392849,5.246,95.363,95.268,1.48378421]
[1644656393146,24.6169,95.367,95.269,1.48378421]
[1644656393549,5.245,95.366,95.269,1.48378421]
[1644656393748,33.24757342,95.366,95.27,5.245]
[1644656393952,5.245,95.365,95.27,1.48378421]
[1644656394750,5.245,95.365,95.269,1.48378421]
[1644656395349,5.245,95.365,95.268,1.48378421]
[1644656395551,5.245,95.365,95.269,1.48378421]
[1644656395752,5.245,95.365,95.268,1.48378421]
[1644656396156,5.245,95.365,95.266,47.07125747]
[1644656396157,5.245,95.365,95.269,1.48378421]
[1644656396353,5.245,95.365,95.268,1.48378421]
[1644656397355,5.245,95.365,95.27,1.48378421]
[1644656397555,33.24757342,95.366,95.268,1.48378421]
[1644656397757,33.24757342,95.366,95.269,5.245]
[1644656397958,33.24757342,95.366,95.268,1.48378421]
[1644656398257,33.24757342,95.366,95.269,5.245]
[1644656398460,5.245,95.365,95.266,48.55504168]
[1644656398656,5.245,95.365,95.268,1.48378421]
[1644656400358,5.245,95.365,95.27,0.024]
[1644656401063,24.6169,95.367,95.27,0.024]
[1644656401259,24.6169,95.367,95.273,1.48378421]
[1644656401459,24.6169,95.367,95.28,15.12]
[1644656401659,15.7409,95.39,95.28,15.12]
[1644656401859,30.81057305,95.403,95.291,1.48378421]
[1644656402060,30.81057305,95.403,95.281,46.60861623]
[1644656402061,30.81057305,95.403,95.301,38.83592547]
[1644656402260,53.9397,95.418,95.31,15.12]
[1644656402461,5.243,95.416,95.31,15.12]
[1644656402661,5.243,95.417,95.311,5.243]
[1644656402961,5.243,95.417,95.311,2.38366791]
[1644656403360,36.56413944,95.416,95.311,2.38366791]
[1644656403564,5.243,95.415,95.312,5.243]
[1644656404359,5.243,95.415,95.313,2.38366791]
[1644656404589,2.23433228,95.415,95.313,2.38366791]
[1644656405294,15.7376,95.41,95.313,2.38366791]
[1644656406688,36.56413944,95.416,95.313,2.38366791]
[1644656407089,48.6957,95.418,95.313,2.38366791]
[1644656407692,48.6957,95.418,95.32,15.7332]
[1644656407894,5.242,95.429,95.33,15.12]
[1644656408091,113.04138109,95.47,95.33,15.12]
[1644656408092,1.47140804,95.446,95.331,46.56678286]
[1644656408293,38.50166869,95.455,95.332,1.48378421]
[1644656408493,38.50166869,95.455,95.335,1.48378421]
[1644656408697,38.50166869,95.455,95.336,5.241]
[1644656408895,5.241,95.465,95.35,15.12]
[1644656409096,5.241,95.465,95.351,30.0442]
[1644656409299,5.24,95.468,95.351,24.8042]
[1644656409499,5.24,95.468,95.351,27.18786791]
[1644656409698,6.71140804,95.468,95.352,2.38366791]
[1644656409901,34.19109102,95.467,95.353,46.14048778]
[1644656410098,34.19109102,95.467,95.354,5.24]
[1644656410301,47.0655,95.469,95.354,7.62366791]
[1644656410500,47.0655,95.469,95.355,2.38366791]
[1644656410899,47.0655,95.469,95.38,15.723]
[1644656411100,5.239,95.468,95.38,15.723]
[1644656411302,47.0655,95.469,95.381,38.91473558]
[1644656411600,47.0655,95.469,95.382,2.38366791]
[1644656411799,47.0655,95.469,95.383,5.239]
[1644656412203,52.39044836,95.469,95.383,5.239]
[1644656413002,5.239,95.468,95.381,36.53106767]
[1644656413202,52.39044836,95.469,95.381,36.53106767]
[1644656415505,52.39044836,95.469,95.361,5.239]
[1644656415806,15.77098109,95.46,95.361,5.239]
[1644656416007,5.24,95.459,95.361,5.239]
[1644656416208,7.47424015,95.459,95.361,5.239]
[1644656416412,2.23424015,95.458,95.361,5.239]
[1644656416609,5.24,95.457,95.361,5.239]
[1644656416808,15.7321,95.44,95.361,5.239]
[1644656417008,5.241,95.439,95.361,5.239]
[1644656417207,4.09914,95.438,95.361,5.239]
[1644656417411,5.241,95.437,95.361,5.239]
[1644656417609,4.09914,95.436,95.32,0.024]
[1644656417811,0.04138109,95.43,95.32,0.024]
[1644656418009,30.8567,95.42,95.301,35.42271924]
[1644656418208,5.32494836,95.418,95.31,0.024]
[1644656418409,5.243,95.417,95.31,0.024]
[1644656418915,2.23424015,95.416,95.31,0.024]
[1644656419112,15.7425,95.39,95.31,0.024]
[1644656419310,34.06068627,95.389,95.301,35.42271924]
[1644656420714,15.7427,95.38,95.301,35.42271924]
[1644656422315,5.244,95.379,95.301,35.42271924]
[1644656423616,15.7427,95.38,95.301,35.42271924]
[1644656423821,15.7427,95.38,95.302,5.244]
[1644656425518,15.7427,95.38,95.301,35.42271924]
[1644656425721,5.244,95.379,95.301,35.42271924]
[1644656426922,34.06068627,95.389,95.302,2.38366791]
[1644656427125,34.06068627,95.389,95.302,7.62766791]
[1644656427525,34.06068627,95.389,95.303,2.38366791]
[1644656428825,5.244,95.388,95.303,2.38366791]
[1644656431643,34.06068627,95.389,95.301,35.42271924]
[1644656431843,15.7426,95.38,95.301,35.42271924]
[1644656432042,5.244,95.379,95.301,35.42271924]
[1644656432242,16.85824015,95.379,95.301,35.42271924]
[1644656432443,2.23424015,95.378,95.301,35.42271924]
[1644656432746,5.244,95.377,95.301,35.42271924]
[1644656433145,2.23424015,95.376,95.301,35.42271924]
[1644656433543,5.32494836,95.374,95.301,35.42271924]
[1644656433745,15.7444,95.37,95.301,35.42271924]
[1644656435346,5.244,95.369,95.301,35.42271924]
[1644656436750,15.7444,95.37,95.301,35.42271924]
[1644656437146,5.244,95.369,95.301,35.42271924]
[1644656441053,15.7444,95.37,95.301,35.42271924]
[1644656442860,5.244,95.388,95.301,35.42271924]
[1644656442861,5.244,95.383,95.302,2.38366791]
[1644656443059,15.7408,95.39,95.302,7.62766791]
[1644656443459,15.7408,95.39,95.303,2.38366791]
[1644656443658,15.7408,95.39,95.304,5.244]
[1644656443857,30.43358505,95.387,95.301,35.42271924]
[1644656444360,15.7408,95.39,95.302,5.244]
[1644656444559,24.8477,95.399,95.302,7.62766791]
[1644656444956,5.243,95.398,95.302,7.62766791]
[1644656445356,60.34533332,95.397,95.302,7.62766791]
[1644656445557,15.741,95.39,95.301,35.42271924]
[1644656445960,7.47315477,95.389,95.301,35.42271924]
[1644656446157,2.22915477,95.389,95.301,35.42271924]
[1644656446359,5.244,95.388,95.301,35.42271924]
[1644656446758,5.244,95.388,95.302,3.86745212]
[1644656446959,2.22915477,95.389,95.302,3.86745212]
[1644656447162,2.22915477,95.389,95.302,1.48378421]
[1644656447359,2.22915477,95.389,95.301,35.42271924]
[1644656447559,5.244,95.388,95.301,35.42271924]
[1644656447761,28.97694687,95.387,95.301,35.42271924]
[1644656447961,5.244,95.386,95.301,35.42271924]
[1644656448363,24.108,95.385,95.301,35.42271924]
[1644656448561,5.244,95.384,95.301,35.42271924]
[1644656449062,2.22915477,95.383,95.301,35.42271924]
[1644656449262,5.244,95.382,95.301,35.42271924]
[1644656449764,3.70056281,95.381,95.301,35.42271924]
[1644656450161,2.22915477,95.38,95.301,35.42271924]
[1644656450362,1.47140804,95.381,95.301,35.42271924]
[1644656450563,1.47140804,95.383,95.301,35.42271924]
[1644656450765,24.108,95.385,95.301,35.42271924]
[1644656450963,24.108,95.385,95.302,7.62766791]
[1644656451163,24.108,95.385,95.303,1.48378421]
[1644656451364,5.244,95.384,95.303,1.48378421]
[1644656451764,5.244,95.384,95.302,3.86745212]
[1644656451963,24.108,95.385,95.303,5.244]
[1644656453063,5.244,95.384,95.302,2.38366791]
[1644656453664,5.244,95.384,95.301,35.42271924]
[1644656454970,24.108,95.385,95.301,35.42271924]
[1644656455371,5.244,95.384,95.301,35.42271924]
[1644656459080,15.7425,95.38,95.297,1.48378421]
[1644656459275,15.7425,95.38,95.291,1.48378421]
[1644656459276,5.244,95.379,95.291,1.48378421]
[1644656459480,1.47140804,95.374,95.29,0.024]
[1644656459682,16.59140804,95.37,95.277,1.48378421]
[1644656459879,1.47140804,95.364,95.28,0.024]
[1644656460083,37.4990864,95.363,95.272,47.00625626]
[1644656460279,39.72824117,95.363,95.272,47.00625626]
[1644656460778,15.7458,95.36,95.272,47.00625626]
[1644656460978,15.7458,95.36,95.272,48.49004047]
[1644656460979,5.245,95.359,95.272,48.49004047]
[1644656461380,5.245,95.362,95.272,48.49004047]
[1644656461780,7.47415477,95.362,95.272,48.49004047]
[1644656461982,7.47415477,95.362,95.272,47.00625626]
[1644656462588,15.7474,95.35,95.27,0.024]
[1644656462782,15.7474,95.35,95.241,5.245]
[1644656462783,15.12,95.34,95.25,0.024]
[1644656462983,1.47140804,95.336,95.241,5.245]
[1644656463182,5.247,95.335,95.241,5.245]
[1644656463383,15.12,95.33,95.241,5.245]
[1644656463583,51.2649,95.329,95.242,34.62148679]
[1644656463784,15.754,95.32,95.242,34.62148679]
[1644656464185,9.2438864,95.319,95.242,34.62148679]
[1644656465209,5.247,95.318,95.242,34.62148679]
[1644656465407,5.247,95.318,95.228,1.48378421]
[1644656465606,23.7984,95.317,95.227,1.48378421]
[1644656465806,15.7548,95.31,95.227,1.48378421]
[1644656466109,15.7548,95.31,95.226,1.48378421]
[1644656466306,15.7548,95.31,95.228,46.12689963]
[1644656470513,2.22915477,95.309,95.221,5.248]
[1644656470710,15.7571,95.29,95.22,0.024]
[1644656471008,15.7571,95.29,95.208,24.5794]
[1644656471009,24.9671,95.29,95.208,26.06318421]
[1644656471210,24.9671,95.29,95.208,24.5794]
[1644656471708,30.14174823,95.289,95.209,38.63984689]
[1644656473309,38.50174823,95.289,95.209,38.63984689]
[1644656474109,38.50174823,95.289,95.21,5.249]
[1644656474312,15.7588,95.28,95.21,5.249]
[1644656474510,5.249,95.279,95.21,5.249]
[1644656474711,7.47815477,95.279,95.21,5.249]
[1644656475011,15.12,95.27,95.21,5.249]
[1644656475213,15.12,95.26,95.18,0.024]
[1644656475413,15.12,95.26,95.14,5.249]
[1644656475414,15.12,95.25,95.17,0.024]
[1644656475615,15.7708,95.23,95.16,0.024]
[1644656475811,23.8296,95.229,95.14,0.024]
[1644656476011,29.0816,95.229,95.139,47.5331]
[1644656476211,2.22915477,95.228,95.139,47.5331]
[1644656476411,5.253,95.227,95.14,41.31320215]
[1644656476811,15.7715,95.21,95.14,41.31320215]
[1644656477011,15.7715,95.21,95.14,40.81320215]
[1644656478314,5.253,95.209,95.14,40.81320215]
[1644656479713,15.7715,95.21,95.14,40.81320215]
[1644656480915,23.8296,95.229,95.14,40.81320215]
[1644656481117,23.8296,95.229,95.141,5.252]
[1644656481415,23.8296,95.229,95.141,7.63566791]
[1644656481614,35.56678102,95.228,95.141,7.63566791]
[1644656481816,5.252,95.227,95.142,2.38366791]
[1644656482817,23.8296,95.229,95.142,2.38366791]
[1644656482818,5.252,95.228,95.142,2.38366791]
[1644656483023,23.8296,95.229,95.143,5.252]
[1644656483420,5.252,95.228,95.144,2.38366791]
[1644656483616,23.8296,95.229,95.144,2.38366791]
[1644656483817,23.8296,95.229,95.145,5.252]
[1644656484117,23.8296,95.229,95.146,2.38366791]
[1644656484519,23.8296,95.229,95.147,5.252]
[1644656484921,23.8296,95.229,95.148,2.38366791]
[1644656486122,23.8296,95.229,95.149,5.252]
[1644656486523,23.8296,95.229,95.15,2.38366791]
[1644656486923,23.8296,95.229,95.149,5.252]
[1644656487123,5.252,95.228,95.149,5.252]
[1644656487926,15.7692,95.22,95.149,5.252]
[1644656488125,6.68416171,95.218,95.149,5.252]
[1644656488329,5.253,95.217,95.14,40.81320215]
[1644656489830,15.7707,95.21,95.14,40.81320215]
[1644656491229,17.99985477,95.21,95.14,40.81320215]
[1644656491830,15.7707,95.21,95.14,40.81320215]
[1644656493636,5.253,95.209,95.14,40.81320215]
[1644656495940,15.7707,95.21,95.14,40.81320215]
[1644656499960,5.253,95.209,95.14,40.81320215]
[1644656500762,15.7707,95.21,95.14,40.81320215]
[1644656501763,15.7707,95.21,95.14,42.29698636]
[1644656501963,5.253,95.209,95.14,40.81320215]
[1644656502163,15.7707,95.21,95.14,40.81320215]
[1644656502564,15.7707,95.21,95.157,1.48378421]
[1644656502764,15.7707,95.21,95.158,41.62826495]
[1644656503465,15.7707,95.21,95.159,1.48378421]
[1644656503668,15.7707,95.21,95.16,1.48378421]
[1644656503865,15.7707,95.21,95.159,1.48378421]
[1644656505068,5.252,95.209,95.158,41.62826495]
[1644656505267,15.7725,95.2,95.159,1.48378421]
[1644656505467,15.7725,95.2,95.157,1.48378421]
[1644656505867,15.7725,95.2,95.154,1.48378421]
[1644656506067,15.7725,95.2,95.115,3.68533708]
[1644656506068,15.7725,95.2,95.155,1.48378421]
[1644656506273,22.97167973,95.2,95.155,1.48378421]
[1644656506470,15.7725,95.2,95.155,1.48378421]
[1644656506669,15.7725,95.2,95.156,1.48378421]
[1644656507370,15.7725,95.2,95.13,0.024]
[1644656507571,15.7725,95.2,95.141,1.4880981]
[1644656507572,30.24365477,95.199,95.141,1.4880981]
[1644656507773,15.7764,95.19,95.128,1.4880981]
[1644656507971,15.12,95.18,95.12,1.4880981]
[1644656508172,5.253,95.179,95.121,1.4880981]
[1644656508374,35.58885952,95.178,95.116,1.4880981]
[1644656508572,5.255,95.177,95.115,5.253]
[1644656509572,15.12,95.18,95.1,0.024]
[1644656509573,15.12,95.18,95.112,1.4880981]
[1644656509772,15.12,95.18,95.116,2.38366791]
[1644656509973,15.12,95.18,95.116,3.87176601]
[1644656510179,15.12,95.18,95.117,1.4880981]
[1644656510375,38.4755564,95.178,95.115,1.4880981]
[1644656510573,29.9382,95.177,95.106,1.4880981]
[1644656510773,24.6832,95.177,95.105,1.4880981]
[1644656510972,5.255,95.176,95.108,1.4880981]
[1644656511172,24.6832,95.177,95.106,1.4880981]
[1644656511381,5.255,95.175,95.106,1.4880981]
[1644656511572,5.255,95.176,95.103,46.05325589]
[1644656511773,15.7787,95.17,95.103,46.05325589]
[1644656511975,5.255,95.169,95.103,46.05325589]
[1644656512172,15.7787,95.17,95.103,46.05325589]
[1644656512978,5.255,95.169,95.103,46.05325589]
[1644656513777,15.7787,95.17,95.103,46.05325589]
[1644656513983,15.7787,95.17,95.104,1.4880981]
[1644656514185,24.6832,95.177,95.104,1.4880981]
[1644656514380,5.255,95.176,95.103,47.54135399]
[1644656514579,24.6832,95.177,95.104,1.4880981]